fUSD/lending_fUSD_20250930
["ID","MTS","AMOUNT","RATE_DAILY","PERIOD"]
[388554610,1759240305277,-2187.82,0.00019726,2]
[388554611,1759240305289,-155.785656,0.00019726,2]
[388554612,1759240305304,-500.0,0.00019726,2]
[388554613,1759240305316,-1729.31,0.00019726,2]
[388554614,1759240305326,-155.785656,0.00019726,2]
[388554615,1759240305337,-1087.68,0.00019726,2]
[388554616,1759240305348,-500.0,0.00019726,2]
[388554617,1759240305358,-155.785656,0.00019726,2]
[388554618,1759240305369,-1432.91,0.00019726,2]
[388554619,1759240305379,-1339.37,0.00019726,2]
[388554620,1759240305390,-155.785663,0.00019726,2]
[388554621,1759240305401,-500.0,0.00019726,2]
[388554622,1759240305411,-4935.23,0.00019726,2]
[388554623,1759240305422,-500.0,0.00019726,2]
[388554624,1759240305433,-6485.87,0.00019726,2]
[388554625,1759240305445,-982.28,0.00019726,2]
[388554626,1759240305457,-977.34,0.00019726,2]
[388554627,1759240305468,-500.0,0.00019726,2]
[388554628,1759240305479,-640.07,0.00019726,2]
[388554629,1759240305490,-500.0,0.00019726,2]
[388554630,1759240305501,-500.0,0.00019726,2]
[388554631,1759240305513,-500.0,0.00019726,2]
[388554632,1759240305523,-4283.19,0.00019726,2]
[388554633,1759240305534,-500.0,0.00019726,2]
[388554634,1759240305544,-3484.89,0.00019726,2]
[388554635,1759240305555,-500.0,0.00019726,2]
[388554636,1759240305566,-879.58,0.00019726,2]
[388554637,1759240305576,-771.28,0.00019726,2]
[388554638,1759240305586,-500.0,0.00019726,2]
[388554639,1759240305597,-1514.61,0.00019726,2]
[388554640,1759240305607,-500.0,0.00019726,2]
[388554641,1759240305618,-642.61,0.00019726,2]
[388554642,1759240305628,-1615.18,0.00019726,2]
[388554643,1759240305639,-5250.86,0.00019726,2]
[388554644,1759240305650,-335.41954383,0.00019726,2]
[388554645,1759240305663,-534.22384938,0.00019726,2]
[388554646,1759240305678,-554.09,0.00019726,2]
[388554647,1759240305688,-4147.05,0.00019726,2]
[388554648,1759240305704,-500.0,0.00019726,2]
[388554649,1759240305715,-500.0,0.00019726,2]
[388554650,1759240305725,-500.0,0.00019726,2]
[388554651,1759240305736,-2880.85,0.00019726,2]
[388554652,1759240305747,-500.0,0.00019726,2]
[388554653,1759240305757,-1955.1,0.00019726,2]
[388554654,1759240305768,-500.0,0.00019726,2]
[388554655,1759240305779,-4642.17,0.00019726,2]
[388554656,1759240305790,-1140.78,0.00019726,2]
[388554657,1759240305800,-3000.73,0.00019726,2]
[388554658,1759240305811,-500.0,0.00019726,2]
[388554659,1759240305824,-500.0,0.00019726,2]
[388554660,1759240305835,-500.0,0.00019726,2]
[388554661,1759240305846,-909.25,0.00019726,2]
[388554662,1759240305856,-1566.99,0.00019726,2]
[388554663,1759240305867,-500.0,0.00019726,2]
[388554664,1759240305877,-701.03,0.00019726,2]
[388554665,1759240305888,-500.0,0.00019726,2]
[388554666,1759240305899,-551.13,0.00019726,2]
[388554667,1759240305909,-1273.89,0.00019726,2]
[388554668,1759240305920,-614.69,0.00019726,2]
[388554669,1759240305931,-500.0,0.00019726,2]
[388554670,1759240305941,-5689.13,0.00019726,2]
[388554671,1759240305951,-1076.21,0.00019726,2]
[388554672,1759240305962,-884.18,0.00019726,2]
[388554673,1759240305972,-500.0,0.00019726,2]
[388554674,1759240305983,-500.0,0.00019726,2]
[388554675,1759240305994,-3314.41,0.00019726,2]
[388554676,1759240306004,-2180.29,0.00019726,2]
[388554677,1759240306015,-3873.86,0.00019726,2]
[388554678,1759240306024,-3687.17,0.00019726,2]
[388554679,1759240306035,-913.68,0.00019726,2]
[388554680,1759240306045,-500.0,0.00019726,2]
[388554681,1759240306055,-151.0,0.00019726,2]
[388554682,1759240306066,-659.75,0.00019726,2]
[388554683,1759240306076,-4847.84,0.00019726,2]
[388554684,1759240306086,-500.0,0.00019726,2]
[388554685,1759240306100,-2846.88,0.00019726,2]
[388554686,1759240306112,-805.348617,0.00019726,2]
[388554687,1759240306122,-152.135929,0.00019726,2]
[388554688,1759240306134,-595.256096,0.00019726,2]
[388554689,1759240306144,-805.348617,0.00019726,2]
[388554690,1759240306154,-3509.0,0.00019726,2]
[388554691,1759240306164,-152.135929,0.00019726,2]
[388554692,1759240306175,-657.41,0.00019726,2]
[388554693,1759240306185,-686.0,0.00019726,2]
[388554694,1759240306195,-4580.15,0.00019726,2]
[388554695,1759240306206,-805.348617,0.00019726,2]
[388554696,1759240306218,-152.135929,0.00019726,2]
[388554697,1759240306228,-500.0,0.00019726,2]
[388554698,1759240306239,-2792.33,0.00019726,2]
[388554699,1759240306250,-500.0,0.00019726,2]
[388554700,1759240306262,-549.1,0.00019726,2]
[388554701,1759240306272,-152.135927,0.00019726,2]
[388554702,1759240306282,-215.136246,0.00019726,2]
[388554703,1759240306293,-1789.31,0.00019726,2]
[388554704,1759240306303,-545.75156802,0.00019726,2]
[388554705,1759240306314,-500.0,0.00019726,2]
[388554706,1759240306328,-684.53,0.00019726,2]
[388554707,1759240306339,-805.348619,0.00019726,2]
[388554708,1759240306355,-500.0,0.00019726,2]
[388554709,1759240306365,-595.256096,0.00019726,2]
[388554710,1759240306376,-500.0,0.00019726,2]
[388554711,1759240306386,-500.0,0.00019726,2]
[388554712,1759240306396,-215.136246,0.00019726,2]
[388554713,1759240306408,-595.256096,0.00019726,2]
[388554714,1759240306418,-500.0,0.00019726,2]
[388554715,1759240306428,-215.136246,0.00019726,2]
[388554716,1759240306438,-151.0,0.00019726,2]
[388554717,1759240306449,-500.0,0.00019726,2]
[388554718,1759240306460,-595.256091,0.00019726,2]
[388554719,1759240306470,-751.52,0.00019726,2]
[388554720,1759240306480,-151.0,0.00019726,2]
[388554721,1759240306491,-4288.38,0.00019726,2]
[388554722,1759240306501,-500.0,0.00019726,2]
[388554723,1759240306511,-4326.28,0.00019726,2]
[388554724,1759240306521,-560.42,0.00019726,2]
[388554725,1759240306531,-215.136242,0.00019726,2]
[388554726,1759240306545,-2533.68,0.00019726,2]
[388554727,1759240306556,-2033.24,0.00019726,2]
[388554728,1759240306568,-500.0,0.00019726,2]
[388554729,1759240306579,-3758.3,0.00019726,2]
[388554730,1759240306590,-650.69,0.00019726,2]
[388554731,1759240306602,-2934.06,0.00019726,2]
[388554732,1759240306613,-500.0,0.00019726,2]
[388554733,1759240306625,-500.0,0.00019726,2]
[388554734,1759240306635,-500.0,0.00019726,2]
[388554735,1759240306646,-1877.95,0.00019726,2]
[388554736,1759240306657,-532.98,0.00019726,2]
[388554737,1759240306668,-517.49114458,0.00019726,2]
[388554738,1759240306678,-500.0,0.00019726,2]
[388554739,1759240306688,-4173.34,0.00019726,2]
[388554740,1759240306698,-2889.91,0.00019726,2]
[388554741,1759240306708,-500.0,0.00019726,2]
[388554742,1759240306718,-500.0,0.00019726,2]
[388554743,1759240306728,-151.0,0.00019726,2]
[388554744,1759240306738,-500.0,0.00019726,2]
[388554745,1759240306748,-500.0,0.00019726,2]
[388554746,1759240307320,-3353.46,0.00019726,2]
[388554747,1759240307357,-517.4,0.00019726,2]
[388554748,1759240307367,-151.0,0.00019726,2]
[388554749,1759240307377,-500.0,0.00019726,2]
[388554750,1759240307386,-500.0,0.00019726,2]
[388554751,1759240307397,-3888.52,0.00019726,2]
[388554752,1759240307406,-4877.04,0.00019726,2]
[388554753,1759240307416,-500.0,0.00019726,2]
[388554754,1759240307426,-500.0,0.00019726,2]
[388554755,1759240307435,-500.0,0.00019726,2]
[388554756,1759240307444,-500.0,0.00019726,2]
[388554757,1759240307454,-500.0,0.00019726,2]
[388554758,1759240307463,-500.0,0.00019726,2]
[388554759,1759240307472,-3410.55,0.00019726,2]
[388554760,1759240307482,-248.082918,0.00019726,2]
[388554761,1759240307491,-3031.79,0.00019726,2]
[388554762,1759240307501,-2806.65,0.00019726,2]
[388554763,1759240307510,-500.0,0.00019726,2]
[388554764,1759240307520,-3132.31,0.00019726,2]
[388554765,1759240307529,-248.082918,0.00019726,2]
[388554766,1759240307539,-248.082918,0.00019726,2]
[388554767,1759240307548,-500.0,0.00019726,2]
[388554768,1759240307558,-500.0,0.00019726,2]
[388554769,1759240307569,-2707.99,0.00019726,2]
[388554770,1759240307578,-2707.99,0.00019726,2]
[388554771,1759240307588,-2100.64,0.00019726,2]
[388554772,1759240307598,-1688.46,0.00019726,2]
[388554773,1759240307607,-3411.37,0.00019726,2]
[388554774,1759240307617,-521.13,0.00019726,2]
[388554775,1759240307627,-500.0,0.00019726,2]
[388554776,1759240307636,-3419.82,0.00019726,2]
[388554777,1759240307646,-500.0,0.00019726,2]
[388554778,1759240307655,-4003.15,0.00019726,2]
[388554779,1759240307665,-551.58,0.00019726,2]
[388554780,1759240307674,-500.0,0.00019726,2]
[388554781,1759240307684,-9394.178026,0.00019726,2]
[388554782,1759240307694,-405.942172,0.00019726,2]
[388554783,1759240307703,-2415.06,0.00019726,2]
[388554784,1759240307713,-500.0,0.00019726,2]
[388554785,1759240307723,-800.44,0.00019726,2]
[388554786,1759240307733,-417.411714,0.00019726,2]
[388554787,1759240307742,-151.0,0.00019726,2]
[388554788,1759240307752,-724.36,0.00019726,2]
[388554789,1759240307762,-342.860755,0.00019726,2]
[388554790,1759240307771,-2013.75,0.00019726,2]
[388554791,1759240307781,-2742.48,0.00019726,2]
[388554792,1759240307790,-151.0,0.00019726,2]
[388554793,1759240307800,-500.0,0.00019726,2]
[388554794,1759240307809,-248.082917,0.00019726,2]
[388554795,1759240307819,-3714.03504,0.00019726,2]
[388554796,1759240307833,-500.0,0.00019726,2]
[388554797,1759240307844,-4139.96,0.00019726,2]
[388554798,1759240307854,-500.0,0.00019726,2]
[388554799,1759240307864,-8041.96422,0.00019726,2]
[388554800,1759240307874,-2166.0,0.00019726,2]
[388554801,1759240307884,-500.0,0.00019726,2]
[388554802,1759240307894,-1899.13,0.00019726,2]
[388554803,1759240307905,-500.0,0.00019726,2]
[388554804,1759240307915,-1756.01,0.00019726,2]
[388554805,1759240307925,-2473.07,0.00019726,2]
[388554806,1759240307935,-500.0,0.00019726,2]
[388554807,1759240307945,-731.53,0.00019726,2]
[388554808,1759240307955,-526.92,0.00019726,2]
[388554809,1759240307965,-500.0,0.00019726,2]
[388554810,1759240307976,-151.0,0.00019726,2]
[388554811,1759240307986,-500.0,0.00019726,2]
[388554812,1759240307996,-151.0,0.00019726,2]
[388554813,1759240308006,-604.76,0.00019726,2]
[388554814,1759240308016,-151.0,0.00019726,2]
[388554815,1759240308026,-3201.03,0.00019726,2]
[388554816,1759240308036,-500.0,0.00019726,2]
[388554817,1759240308047,-5238.49,0.00019726,2]
[388554818,1759240308057,-500.0,0.00019726,2]
[388554819,1759240308066,-500.0,0.00019726,2]
[388554820,1759240308076,-5111.26,0.00019726,2]
[388554821,1759240308086,-500.0,0.00019726,2]
[388554822,1759240308097,-151.0,0.00019726,2]
[388554823,1759240308107,-2560.34,0.00019726,2]
[388554824,1759240308117,-4640.6,0.00019726,2]
[388554825,1759240308126,-500.0,0.00019726,2]
[388554826,1759240308136,-500.0,0.00019726,2]
[388554827,1759240308146,-500.0,0.00019726,2]
[388554828,1759240308156,-500.0,0.00019726,2]
[388554829,1759240308165,-600.0,0.00019726,2]
[388554830,1759240308175,-1545.67,0.00019726,2]
[388554831,1759240308184,-4031.72,0.00019726,2]
[388554832,1759240308194,-500.0,0.00019726,2]
[388554833,1759240308204,-500.0,0.00019726,2]
[388554834,1759240308215,-500.0,0.00019726,2]
[388554835,1759240308226,-311.809884,0.00019726,2]
[388554836,1759240308237,-500.0,0.00019726,2]
[388554837,1759240308248,-1154.63,0.00019726,2]
[388554838,1759240308260,-1918.23,0.00019726,2]
[388554839,1759240308269,-883.02,0.00019726,2]
[388554840,1759240308279,-151.0,0.00019726,2]
[388554841,1759240308290,-2339.41,0.00019726,2]
[388554842,1759240308300,-500.0,0.00019726,2]
[388554843,1759240308310,-500.0,0.00019726,2]
[388554844,1759240308322,-151.0,0.00019726,2]
[388554845,1759240308332,-2821.85,0.00019726,2]
[388554846,1759240308341,-500.0,0.00019726,2]
[388554847,1759240308351,-1397.984294,0.00019726,2]
[388554848,1759240308361,-151.0,0.00019726,2]
[388554849,1759240308371,-500.0,0.00019726,2]
[388554850,1759240308380,-1397.984294,0.00019726,2]
[388554851,1759240308390,-500.0,0.00019726,2]
[388554852,1759240308399,-1184.74,0.00019726,2]
[388554853,1759240308409,-500.0,0.00019726,2]
[388554854,1759240308419,-1397.984294,0.00019726,2]
[388554855,1759240308429,-1397.984284,0.00019726,2]
[388554856,1759240308443,-1299.41,0.00019726,2]
[388554857,1759240308454,-4489.31,0.00019726,2]
[388554858,1759240308464,-311.809884,0.00019726,2]
[388554859,1759240308474,-151.0,0.00019726,2]
[388554860,1759240308485,-500.0,0.00019726,2]
[388554861,1759240308496,-500.0,0.00019726,2]
[388554862,1759240308506,-311.809884,0.00019726,2]
[388554863,1759240308518,-478.30829,0.00019726,2]
[388554864,1759240308528,-311.809888,0.00019726,2]
[388554865,1759240308538,-3466.53,0.00019726,2]
[388554866,1759240308548,-478.30829,0.00019726,2]
[388554867,1759240308558,-934.32,0.00019726,2]
[388554868,1759240308569,-478.30829,0.00019726,2]
[388554869,1759240308579,-500.0,0.00019726,2]
[388554870,1759240308589,-881.11,0.00019726,2]
[388554871,1759240308599,-500.0,0.00019726,2]
[388554872,1759240308610,-500.0,0.00019726,2]
[388554873,1759240308621,-478.3083,0.00019726,2]
[388554874,1759240308631,-3298.82,0.00019726,2]
[388554875,1759240308641,-4290.21,0.00019726,2]
[388554876,1759240308652,-439.964211,0.00019726,2]
[388554877,1759240308663,-500.0,0.00019726,2]
[388554878,1759240308673,-500.0,0.00019726,2]
[388554879,1759240308683,-439.964211,0.00019726,2]
[388554880,1759240308693,-500.0,0.00019726,2]
[388554881,1759240308704,-1143.162969,0.00019726,2]
[388554882,1759240308715,-500.0,0.00019726,2]
[388554883,1759240308726,-439.964211,0.00019726,2]
[388554884,1759240308738,-500.0,0.00019726,2]
[388554885,1759240308748,-3057.69,0.00019726,2]
[388554886,1759240308758,-1143.162969,0.00019726,2]
[388554887,1759240308769,-439.964213,0.00019726,2]
[388554888,1759240308779,-500.0,0.00019726,2]
[388554889,1759240308789,-500.0,0.00019726,2]
[388554890,1759240308799,-1143.162969,0.00019726,2]
[388554891,1759240308809,-4344.73,0.00019726,2]
[388554892,1759240308819,-500.0,0.00019726,2]
[388554893,1759240308829,-500.0,0.00019726,2]
[388554894,1759240308843,-151.0,0.00019726,2]
[388554895,1759240308854,-1143.162976,0.00019726,2]
[388554896,1759240308864,-151.0,0.00019726,2]
[388554897,1759240308874,-500.0,0.00019726,2]
[388554898,1759240308885,-500.0,0.00019726,2]
[388554899,1759240308895,-500.0,0.00019726,2]
[388554900,1759240308905,-1700.17,0.00019726,2]
[388554901,1759240308916,-3909.15,0.00019726,2]
[388554902,1759240308926,-1339.27,0.00019726,2]
[388554903,1759240308936,-500.0,0.00019726,2]
[388554904,1759240308946,-500.0,0.00019726,2]
[388554905,1759240308956,-244.436327,0.00019726,2]
[388554906,1759240308966,-2034.42,0.00019726,2]
[388554907,1759240308976,-500.0,0.00019726,2]
[388554908,1759240308986,-500.0,0.00019726,2]
[388554909,1759240308996,-500.0,0.00019726,2]
[388554910,1759240309006,-244.436327,0.00019726,2]
[388554911,1759240309017,-244.436327,0.00019726,2]
[388554912,1759240309027,-736.64,0.00019726,2]
[388554913,1759240309037,-500.0,0.00019726,2]
[388554914,1759240309047,-500.0,0.00019726,2]
[388554915,1759240309056,-500.0,0.00019726,2]
[388554916,1759240309066,-244.436331,0.00019726,2]
[388554917,1759240309078,-1053.203714,0.00019726,2]
[388554918,1759240309088,-732.56,0.00019726,2]
[388554919,1759240309098,-1053.203714,0.00019726,2]
[388554920,1759240309108,-1529.83,0.00019726,2]
[388554921,1759240309118,-3067.08,0.00019726,2]
[388554922,1759240309128,-938.56,0.00019726,2]
[388554923,1759240309138,-500.0,0.00019726,2]
[388554924,1759240309147,-500.0,0.00019726,2]
[388554925,1759240309157,-500.0,0.00019726,2]
[388554926,1759240309167,-1053.203714,0.00019726,2]
[388554927,1759240309177,-2151.04,0.00019726,2]
[388554928,1759240309186,-1053.203714,0.00019726,2]
[388554929,1759240309196,-500.0,0.00019726,2]
[388554930,1759240309206,-500.0,0.00019726,2]
[388554931,1759240309216,-1542.41,0.00019726,2]
[388554932,1759240309226,-297.95607191,0.00019726,2]
[388554933,1759240309237,-500.0,0.00019726,2]
[388554934,1759240309247,-156.40945186,0.00019726,2]
[388554935,1759240309257,-3516.79,0.00019726,2]
[388554936,1759240309267,-500.0,0.00019726,2]
[388554937,1759240309277,-500.0,0.00019726,2]
[388554938,1759240309287,-500.0,0.00019726,2]
[388554939,1759240309297,-3168.12,0.00019726,2]
[388554940,1759240309307,-583.0,0.00019726,2]
[388554941,1759240309317,-930.23,0.00019726,2]
[388554942,1759240309328,-177.926497,0.00019726,2]
[388554943,1759240309338,-500.0,0.00019726,2]
[388554944,1759240309348,-3884.01,0.00019726,2]
[388554945,1759240309358,-177.926497,0.00019726,2]
[388554946,1759240309368,-500.0,0.00019726,2]
[388554947,1759240309377,-177.926497,0.00019726,2]
[388554948,1759240309387,-500.0,0.00019726,2]
[388554949,1759240309397,-177.926495,0.00019726,2]
[388554950,1759240309407,-151.0,0.00019726,2]
[388554951,1759240309417,-2882.92,0.00019726,2]
[388554952,1759240309427,-500.0,0.00019726,2]
[388554953,1759240309437,-589.91,0.00019726,2]
[388554954,1759240309446,-191.349283,0.00019726,2]
[388554955,1759240309456,-669.58,0.00019726,2]
[388554956,1759240309466,-500.0,0.00019726,2]
[388554957,1759240309476,-3512.3,0.00019726,2]
[388554958,1759240309485,-500.0,0.00019726,2]
[388554959,1759240309496,-191.349283,0.00019726,2]
[388554960,1759240309506,-3713.1,0.00019726,2]
[388554961,1759240309516,-939.33,0.00019726,2]
[388554962,1759240309526,-547.83,0.00019726,2]
[388554963,1759240309536,-191.349283,0.00019726,2]
[388554964,1759240309547,-1922.14,0.00019726,2]
[388554965,1759240309556,-474.8,0.00019726,2]
[388554966,1759240309566,-151.0,0.00019726,2]
[388554967,1759240309579,-1367.87,0.00019726,2]
[388554968,1759240309589,-500.0,0.00019726,2]
[388554969,1759240309599,-1836.55,0.00019726,2]
[388554970,1759240309610,-191.349274,0.00019726,2]
[388554971,1759240309620,-500.0,0.00019726,2]
[388554972,1759240309630,-500.0,0.00019726,2]
[388554973,1759240309639,-645.84,0.00019726,2]
[388554974,1759240309650,-906.86,0.00019726,2]
[388554975,1759240309660,-151.0,0.00019726,2]
[388554976,1759240309670,-151.0,0.00019726,2]
[388554977,1759240309680,-500.19,0.00019726,2]
[388554978,1759240309691,-500.0,0.00019726,2]
[388554979,1759240309701,-500.0,0.00019726,2]
[388554980,1759240309711,-500.0,0.00019726,2]
[388554981,1759240309721,-151.0,0.00019726,2]
[388554982,1759240309732,-288.948147,0.00019726,2]
[388554983,1759240309741,-872.23,0.00019726,2]
[388554984,1759240309752,-703.65,0.00019726,2]
[388554985,1759240309761,-635.26,0.00019726,2]
[388554986,1759240309771,-610.56,0.00019726,2]
[388554987,1759240309781,-5296.49,0.00019726,2]
[388554988,1759240309792,-831.12,0.00019726,2]
[388554989,1759240309801,-657.04,0.00019726,2]
[388554990,1759240309812,-2138.48,0.00019726,2]
[388554991,1759240310063,-1814.33,0.00019726,2]
[388554992,1759240310075,-500.0,0.00019726,2]
[388554993,1759240310085,-934.1,0.00019726,2]
[388554994,1759240310095,-500.0,0.00019726,2]
[388554995,1759240310104,-4201.08,0.00019726,2]
[388554996,1759240310114,-151.0,0.00019726,2]
[388554997,1759240310123,-151.0,0.00019726,2]
[388554998,1759240310133,-500.0,0.00019726,2]
[388554999,1759240310142,-500.0,0.00019726,2]
[388555000,1759240310153,-151.0,0.00019726,2]
[388555001,1759240310162,-1096.67,0.00019726,2]
[388555002,1759240310172,-4322.86,0.00019726,2]
[388555003,1759240310182,-431.81374,0.00019726,2]
[388555004,1759240310191,-925.67,0.00019726,2]
[388555005,1759240310201,-1246.74,0.00019726,2]
[388555006,1759240310210,-151.0,0.00019726,2]
[388555007,1759240310220,-3246.07,0.00019726,2]
[388555008,1759240310231,-431.81374,0.00019726,2]
[388555009,1759240310241,-544.806261,0.00019726,2]
[388555010,1759240310254,-1879.37,0.00019726,2]
[388555011,1759240310264,-500.0,0.00019726,2]
[388555012,1759240310273,-151.0,0.00019726,2]
[388555013,1759240310283,-151.0,0.00019726,2]
[388555014,1759240310293,-151.0,0.00019726,2]
[388555015,1759240310303,-431.81374,0.00019726,2]
[388555016,1759240310312,-544.806261,0.00019726,2]
[388555017,1759240310326,-500.0,0.00019726,2]
[388555018,1759240310335,-151.0,0.00019726,2]
[388555019,1759240310345,-2201.18,0.00019726,2]
[388555020,1759240310355,-500.0,0.00019726,2]
[388555021,1759240310364,-544.806261,0.00019726,2]
[388555022,1759240310374,-431.813733,0.00019726,2]
[388555023,1759240310383,-544.806264,0.00019726,2]
[388555024,1759240310393,-500.0,0.00019726,2]
[388555025,1759240310402,-500.0,0.00019726,2]
[388555026,1759240310412,-2013.49,0.00019726,2]
[388555027,1759240310421,-500.0,0.00019726,2]
[388555028,1759240310430,-234.48412,0.00019726,2]
[388555029,1759240310440,-981.64,0.00019726,2]
[388555030,1759240310449,-500.0,0.00019726,2]
[388555031,1759240310458,-500.0,0.00019726,2]
[388555032,1759240310468,-1331.16,0.00019726,2]
[388555033,1759240310477,-764.521535,0.00019726,2]
[388555034,1759240310487,-879.12,0.00019726,2]
[388555035,1759240310500,-710.39,0.00019726,2]
[388555036,1759240310510,-598.23,0.00019726,2]
[388555037,1759240310519,-736.23,0.00019726,2]
[388555038,1759240310529,-500.0,0.00019726,2]
[388555039,1759240310538,-500.0,0.00019726,2]
[388555040,1759240310547,-764.521535,0.00019726,2]
[388555041,1759240310557,-500.0,0.00019726,2]
[388555042,1759240310567,-764.521535,0.00019726,2]
[388555043,1759240310581,-2843.26,0.00019726,2]
[388555044,1759240310591,-764.521528,0.00019726,2]
[388555045,1759240310600,-2775.75,0.00019726,2]
[388555046,1759240310610,-500.0,0.00019726,2]
[388555047,1759240310620,-2015.99,0.00019726,2]
[388555048,1759240310629,-1084.002084,0.00019726,2]
[388555049,1759240310639,-500.0,0.00019726,2]
[388555050,1759240310648,-1084.002084,0.00019726,2]
[388555051,1759240310659,-500.0,0.00019726,2]
[388555052,1759240310669,-1744.81,0.00019726,2]
[388555053,1759240310679,-1084.002084,0.00019726,2]
[388555054,1759240310689,-500.0,0.00019726,2]
[388555055,1759240310699,-4492.44,0.00019726,2]
[388555056,1759240310708,-500.0,0.00019726,2]
[388555057,1759240310718,-1084.00209,0.00019726,2]
[388555058,1759240310727,-500.0,0.00019726,2]
[388555059,1759240310737,-500.0,0.00019726,2]
[388555060,1759240310747,-1567.07,0.00019726,2]
[388555061,1759240310756,-500.0,0.00019726,2]
[388555062,1759240310766,-500.0,0.00019726,2]
[388555063,1759240310775,-1731.1,0.00019726,2]
[388555064,1759240310784,-1622.26,0.00019726,2]
[388555065,1759240310793,-786.49,0.00019726,2]
[388555066,1759240310803,-500.0,0.00019726,2]
[388555067,1759240310813,-4390.54,0.00019726,2]
[388555068,1759240310825,-500.0,0.00019726,2]
[388555069,1759240310834,-5493.72,0.00019726,2]
[388555070,1759240310844,-500.0,0.00019726,2]
[388555071,1759240310853,-500.0,0.00019726,2]
[388555072,1759240310863,-1863.44,0.00019726,2]
[388555073,1759240310873,-500.0,0.00019726,2]
[388555074,1759240310883,-1202.76,0.00019726,2]
[388555075,1759240310893,-500.0,0.00019726,2]
[388555076,1759240310905,-2774.48,0.00019726,2]
[388555077,1759240310915,-5219.82,0.00019726,2]
[388555078,1759240310925,-1956.66,0.00019726,2]
[388555079,1759240310934,-1318.96,0.00019726,2]
[388555080,1759240310944,-4927.14,0.00019726,2]
[388555081,1759240310953,-1978.62,0.00019726,2]
[388555082,1759240310963,-500.0,0.00019726,2]
[388555083,1759240310973,-500.0,0.00019726,2]
[388555084,1759240310982,-500.0,0.00019726,2]
[388555085,1759240310991,-1583.44,0.00019726,2]
[388555086,1759240311001,-4340.48,0.00019726,2]
[388555087,1759240311010,-1073.21,0.00019726,2]
[388555088,1759240311020,-626.84,0.00019726,2]
[388555089,1759240311029,-1300.2,0.00019726,2]
[388555090,1759240311039,-151.0,0.00019726,2]
[388555091,1759240311048,-500.0,0.00019726,2]
[388555092,1759240311057,-2633.64,0.00019726,2]
[388555093,1759240311067,-500.0,0.00019726,2]
[388555094,1759240311078,-2610.4,0.00019726,2]
[388555095,1759240311087,-989.47,0.00019726,2]
[388555096,1759240311097,-1169.32,0.00019726,2]
[388555097,1759240311106,-500.0,0.00019726,2]
[388555098,1759240311116,-500.0,0.00019726,2]
[388555099,1759240311125,-500.0,0.00019726,2]
[388555100,1759240311135,-649.78,0.00019726,2]
[388555101,1759240311145,-500.0,0.00019726,2]
[388555102,1759240311154,-4104.25,0.00019726,2]
[388555103,1759240311163,-500.0,0.00019726,2]
[388555104,1759240311173,-539.356989,0.00019726,2]
[388555105,1759240311182,-151.0,0.00019726,2]
[388555106,1759240311191,-539.356989,0.00019726,2]
[388555107,1759240311201,-3027.16,0.00019726,2]
[388555108,1759240311211,-500.0,0.00019726,2]
[388555109,1759240311220,-3443.7,0.00019726,2]